Cogmind - Beta 15 @@@ ROGUE MODE // 2025.09.29 @ 04:44:03 Player: souux Result: Destroyed by Autobeam Turret with Autobeam Performance ------------- Evolutions (0) 0 Regions Visited (3) 600 Robots Destroyed (33) 165 Value Destroyed (885) 885 Prototype IDs (2) 40 Alien Tech Used (0) 0 Bonus (0) 0 TOTAL SCORE: 1690 Bonus ------- None Cogmind --------- Core Integrity 0/250 Matter 236/300 Energy 280/280 System Corruption 0% Temperature Cool (46) Movement Rolling (105) Ox1 Location -10/Subcaves Parts ------- > --- POWER (1) -------- Heavy Ion Engine > --- PROPULSION (2) --- Armored Wheel Armored Wheel > --- UTILITY (2) ------ Large Storage Unit Makeshift Light Armor Plating > --- WEAPON (2) ------- Particle Cannon Barrage Gun > --- INVENTORY (15) --- Subdweller Power Source Subdweller Monowheel Subdweller Monowheel Subdweller Monowheel Subdweller Monowheel Subdweller Monowheel Heat Sink Terrain Scanner Seismic Detector Subdweller Beam Cannon Subdweller Beam Cannon Subdweller Shrapnel Launcher Datajack Makeshift Sword Peak State ------------ > --- POWER ------------ Heavy Ion Engine > --- PROPULSION ------- Armored Wheel Armored Wheel > --- UTILITY ---------- Large Storage Unit Makeshift Light Armor Plating > --- WEAPON ----------- Subdweller Beam Cannon Barrage Gun > --- INVENTORY -------- Subdweller Power Source Subdweller Monowheel Subdweller Monowheel Subdweller Monowheel Subdweller Monowheel Subdweller Monowheel Heat Sink Terrain Scanner Seismic Detector Particle Cannon Subdweller Beam Cannon Subdweller Shrapnel Launcher Datajack Makeshift Sword [Rating: 19] Favorites ----------- Power Heavy Ion Engine Engine Heavy Ion Engine Power Core Light Nuclear Core Propulsion Armored Wheel Wheel Armored Wheel Flight Unit Improved Flight Unit Utility Large Storage Unit Device Seismic Detector Storage Large Storage Unit Protection Makeshift Light Armor Plating Weapon Particle Cannon Energy Gun Medium Laser Energy Cannon Particle Cannon Ballistic Gun Subdweller Machine Gun Launcher Grenade Launcher Slashing Weapon Makeshift Sword Special Melee Weapon Datajack Build | -11 -10 -10 -10 ------- Run | Yrd Mat Min Sub Slots Evolved . | . . . . Power . | . . . . Propulsion . | . . . . Utility . | . . . . Weapon . | . . . . Parts Attached 41 | 8 14 . 19 Power 4 | 1 2 . 1 Engine 3 | 1 1 . 1 Core 1 | . 1 . . Reactor . | . . . . Propulsion 11 | 2 3 . 6 Treads . | . . . . Leg . | . . . . Wheel 10 | 2 2 . 6 Hover . | . . . . Flight 1 | . 1 . . Utility 9 | 2 4 . 3 Device 5 | 1 2 . 2 Storage 3 | 1 2 . . Processor . | . . . . Hackware . | . . . . Protection 1 | . . . 1 Artifact . | . . . . Weapon 17 | 3 5 . 9 Energy Gun 1 | 1 . . . Energy Cannon 8 | . 4 . 4 Ballistic Gun 5 | 2 . . 3 Ballistic Cannon . | . . . . Launcher 1 | . 1 . . Special Weapon . | . . . . Impact Weapon . | . . . . Slashing Weapon 1 | . . . 1 Piercing Weapon . | . . . . Special Melee Weapon 1 | . . . 1 Unidentified Prototypes 2 | . 2 . . Parts Lost 5 | . 2 . 3 Power 1 | . 1 . . Propulsion 2 | . . . 2 Utility . | . . . . Weapon 2 | . 1 . 1 Highest Loss Streak 2 | . 2 . 2 To Critical Strikes 1 | . . . 1 Average Backups 12 | 6 9 15 14 Power . | . . 1 1 Propulsion 4 | 4 3 3 4 Utility 2 | . 1 3 2 Weapon 4 | . 2 7 4 Tool/Special . | . . . . Unused Backups 23 | . 7 . 16 Power 2 | . 1 . 1 Propulsion 9 | . 5 . 4 Utility 2 | . . . 2 Weapon 10 | . 1 . 9 Tool/Special . | . . . . Average Slot Usage (%) 99 | . 97 100 99 Engine 13 | . 10 14 14 Wheel 27 | . 27 28 27 Device 10 | . 14 14 7 Storage 14 | . 14 14 14 Protection 3 | . . . 6 Energy Cannon 22 | . 23 28 18 Ballistic Gun 3 | . 1 . 6 Slashing Weapon 1 | . . . 2 Peak Build Rating 19 | 7 15 15 19 Average Rating 15 | 3 12 15 16 On Entrance 9 | . 7 15 15 Naked Turns . | . . . . Heaviest Build 48 | 13 37 37 48 Greatest Support 40 | 26 28 24 40 Greatest Overweight (x) 3 | 3 1 1 2 Average Overweight (x) . | . . 1 1 Largest Inventory Capacity 15 | 8 15 15 15 Average Capacity 13 | 7 10 15 15 Most Carried 15 | 8 15 15 15 Average Carried 12 | 6 9 15 14 Final Capacity 15 | 8 15 15 15 Final Carried 15 | 7 15 15 14 Class Distribution -------------------- 100% | Mutant Dominant Class ---------------- Mutant | -10/Materials Mutant | -10/Mines Mutant | -10/Subcaves Resources | -11 -10 -10 -10 ----------- Run | Yrd Mat Min Sub Matter Collected 794 | 283 178 70 263 Remotely 157 | 111 46 . . Salvage Created 1176 | 69 372 106 629 Parts 81 | 2 20 11 48 Haulers Intercepted . | . . . . Recyclers Shooed . | . . . . Parts Field Recycled . | . . . . Retrieved Matter . | . . . . Parts Self-Destructed 26 | . . . 26 Prevented . | . . . . Kills | -11 -10 -10 -10 ------- Run | Yrd Mat Min Sub Combat Hostiles Destroyed 32 | . 11 7 14 Guns 6 | . 5 . 1 Cannons 23 | . 3 7 13 AOE 2 | . 2 . . Classes Destroyed 4 | 1 2 . 1 Recycler 1 | 1 . . . Swarmer 13 | . 3 7 3 Grunt 10 | . 8 . 2 Subdweller 9 | . . . 9 Best Kill Streak 5 | 1 5 3 3 Combat Bots Only 5 | . 5 3 3 Max Kills in Single Turn 2 | 1 2 1 1 Gunslinging . | . . . . Exploded 2 | . 2 . . Melee . | . . . . Uniques/NPCs Destroyed . | . . . . Combat | -11 -10 -10 -10 -------- Run | Yrd Mat Min Sub Hostile Shots Fired 164 | . 62 30 72 Missed 49 | . 15 8 26 Hits 115 | . 47 22 46 Projectile 115 | . 47 22 46 AOE 1 | . . . 1 Critical Strikes 3 | . 1 . 2 Damage Taken 1550 | . 495 178 877 Core 254 | . 83 49 122 Absorbed by Shields . | . . . . Regen/Repaired (Parts) 189 | . 189 . . Core Remaining (%) 100 | 100 . . . Volleys Fired 117 | 1 31 12 73 Largest 2 | 2 2 2 2 Hottest 160 | 70 136 136 160 Shots Fired 201 | 2 52 22 125 Gun 58 | 2 28 . 28 Cannon 142 | . 23 22 97 Launcher 1 | . 1 . . Special . | . . . . Kinetic 45 | 1 16 . 28 Thermal 155 | 1 35 22 97 Explosive 1 | . 1 . . Electromagnetic . | . . . . Robot Hit Streak 28 | 2 11 2 28 Robot Miss Streak 5 | . 5 5 4 Penetration Max . | . . . . Secondary Targets . | . . . . Shots Hit Robots 116 | 2 34 9 71 Core Hits 48 | 1 15 7 25 Critical Kills 1 | . 1 . . Critical Parts Destroyed . | . . . . Critical Strikes 3 | . 2 . 1 Burn 1 | . 1 . . Destroy 2 | . 1 . 1 Melee Attacks 11 | . . . 11 Impact . | . . . . Slashing 10 | . . . 10 Piercing . | . . . . Sneak Attacks . | . . . . Combat Hostiles . | . . . . Follow-up Attacks . | . . . . Damage Inflicted 2565 | 28 665 226 1646 Guns 733 | 28 253 . 452 Cannons 1705 | . 286 225 1194 Explosions 126 | . 126 . . Melee . | . . . . Ramming 1 | . . 1 . Kinetic 631 | 15 164 . 452 Thermal 1807 | 13 375 225 1194 Explosive 126 | . 126 . . Electromagnetic . | . . . . Impact . | . . . . Slashing . | . . . . Piercing . | . . . . Highest Corruption . | . . . . Average Corruption . | . . . . Corruption Purged . | . . . . Corruption Blocked . | . . . . Overload Shots . | . . . . Overflow Damage 22 | . 21 1 . Projectiles 13 | . 12 1 . Explosions 9 | . 9 . . Melee . | . . . . Knockbacks . | . . . . Impact . | . . . . Kinetic . | . . . . Secondary . | . . . . Self-Inflicted Damage 39 | . 39 . . Shots 1 | . 1 . . Rammed 1 | . . 1 . Targets Rammed 1 | . . 1 . Kicked . | . . . . Crushed . | . . . . Highest Temperature 450 | 9 156 450 342 Average Temperature 88 | 6 48 174 75 Received Heat Transfer 198 | . 126 . 72 Effects 4 | . . 4 . Energy Bleed 1 | . . 1 . Interference 3 | . . 3 . Siege Activations . | . . . . Martial Activations . | . . . . Shielding Activations . | . . . . Robots Disrupted . | . . . . Combat Hostiles . | . . . . Robots Corrupted . | . . . . Combat Hostiles . | . . . . Parts Fried . | . . . . Impact Corruptions . | . . . . Robots Melted 1 | . 1 . . Combat Hostiles 1 | . 1 . . Parts Melted 2 | . 2 . . Heat Transferred 3108 | 37 851 407 1813 Parts Sabotaged . | . . . . Parts Stolen . | . . . . Parts Stripped . | . . . . Power Chain Reactions . | . . . . Alert | -11 -10 -10 -10 ------- Run | Yrd Mat Min Sub Maximum Alert Level . | . . . . Low Security (%) 100 | 100 100 100 . Level 1 . | . . . . Level 2 . | . . . . Level 3 . | . . . . Level 4 . | . . . . Level 5 . | . . . . High Security . | . . . . Max Security . | . . . . Peak Influence 119 | 5 119 102 . Initial . | . . . . Average 20 | 1 23 18 . Influence Increases 788 | 5 423 205 155 Destroy 0b10 Robot/C 460 | . 220 140 100 Destroy 0b10 Robot/NC 5 | 5 . . . Destroy Leader 80 | . 50 20 10 Successful Hack 22 | . 22 . . Disable Machine 15 | . 15 . . Destroy Structure 11 | . 11 . . Partial Spotted 15 | . 15 . . Lose Combat Pursuer 180 | . 90 45 45 Influence Decreases 687 | 5 423 133 126 Entered New Map 38 | . . . 38 Time Decay 560 | 5 334 133 88 Lost Part 20 | . 20 . . Purge Threat 69 | . 69 . . Squads Dispatched 2 | . 2 . . Investigation 2 | . 2 . . Extermination . | . . . . Reinforcement . | . . . . Assault . | . . . . Garrison . | . . . . Intercept . | . . . . Searches Triggered . | . . . . Construction Impeded . | . . . . Haulers Reinforced . | . . . . Active Scanning Responses . | . . . . Cargo Convoy Interrupts . | . . . . Stealth | -11 -10 -10 -10 --------- Run | Yrd Mat Min Sub Distress Signals 1 | . 1 . . Communications Jammed . | . . . . Distress Signals . | . . . . Times Spotted 51 | . 27 9 15 Peak Tracking Total 6 | . 6 3 2 Tactical Retreats 9 | . 5 2 2 Traps | -11 -10 -10 -10 ------- Run | Yrd Mat Min Sub Traps Triggered 3 | . 2 . 1 Indirectly . | . . . . Trap Hack Attempts . | . . . . Triggered . | . . . . Disarmed . | . . . . Reprogrammed . | . . . . Reused . | . . . . Traps Extracted . | . . . . Installed . | . . . . Triggered . | . . . . Machines | -11 -10 -10 -10 ---------- Run | Yrd Mat Min Sub Machines Disabled 2 | . 1 . 1 Max in Single Turn 1 | . 1 . 1 Machines Repaired . | . . . . Machines Dismantled . | . . . . Machines Sabotaged . | . . . . Overloaded Fab Kills . | . . . . Hacking | -11 -10 -10 -10 --------- Run | Yrd Mat Min Sub Machines Accessed 10 | . 9 . 1 Terminals 8 | . 8 . . Fabricators . | . . . . Repair Stations 1 | . 1 . . Recycling Units . | . . . . Scanalyzers . | . . . . Garrison Access . | . . . . Total Hacks 42 | . 37 . 5 Successful 27 | . 22 . 5 Failed 15 | . 15 . . Catastrophic 1 | . 1 . . Database Lockouts . | . . . . Manual 27 | . 24 . 3 Terminals 29 | . 29 . . Fabricators . | . . . . Repair Stations 8 | . 8 . . Recycling Units . | . . . . Scanalyzers . | . . . . Garrison Access . | . . . . Terminal Hacks 10 | . 5 . 5 Record 5 | . . . 5 Terminal Index 1 | . 1 . . Alert Level 1 | . 1 . . Unreport Threat 2 | . 2 . . Locate Traps 1 | . 1 . . Fabricator Hacks . | . . . . Repair Station Hacks 8 | . 8 . . Scan Component 4 | . 4 . . Repair 4 | . 4 . . Recycling Unit Hacks . | . . . . Scanalyzer . | . . . . Garrison Access Hacks . | . . . . Unauthorized Hacks 9 | . 9 . . Terminals 9 | . 9 . . Assimilate 1 | . 1 . . Botnet 7 | . 7 . . Operators 1 | . 1 . . Fabricators . | . . . . Repair Stations . | . . . . Recycling Units . | . . . . Scanalyzers . | . . . . Garrison Access . | . . . . Data Cores Recovered . | . . . . Used . | . . . . Hacking Detections 7 | . 7 . . Full Trace Events 2 | . 2 . . Feedback Events . | . . . . Feedback Blocked . | . . . . Robot Schematics Acquired . | . . . . Robots Built . | . . . . Authchips . | . . . . Time . | . . . . Total Robot Build Rating . | . . . . Part Schematics Acquired . | . . . . Parts Built . | . . . . Authchips . | . . . . Time . | . . . . Total Part Build Rating . | . . . . Parts Repaired 4 | . 4 . . Time 147 | . 147 . . Parts Recycled . | . . . . Recycled Matter . | . . . . Retrieved Matter . | . . . . Retrieved Components . | . . . . Parts Scanalyzed . | . . . . Part Schematics Acquired . | . . . . Parts Damaged . | . . . . Bothacking | -11 -10 -10 -10 ------------ Run | Yrd Mat Min Sub Used RIF Installer . | . . . . Robots Hacked . | . . . . Non-combat . | . . . . Combat . | . . . . Robot Hacks Applied . | . . . . Relay Couplers Released . | . . . . Fabnet Peak Effective % . | . . . . Robots Rewired . | . . . . Allies Hacked . | . . . . Hacks Repelled . | . . . . Allies | -11 -10 -10 -10 -------- Run | Yrd Mat Min Sub Total Allies 1 | . 1 . . Largest Group 1 | . 1 1 1 Highest-Rated Group 10 | . 10 10 10 Highest-Rated Ally 10 | . 10 10 10 Total Orders 8 | . 8 . . STAY 4 | . 4 . . FOLLOW 4 | . 4 . . Ally Attacks . | . . . . Total Damage . | . . . . Kills . | . . . . Allies Corrupted . | . . . . Allies Melted . | . . . . Intel | -11 -10 -10 -10 ------- Run | Yrd Mat Min Sub Active Infowar (turns) 1825 | . 335 447 1043 Optics 500 | . . . 500 Seismic 1325 | . 335 447 543 Robot Analysis Total . | . . . . Derelict Logs Recovered 4 | . . 2 2 Drone Launches . | . . . . Drone Recoveries . | . . . . Exploration | -11 -10 -10 -10 ------------- Run | Yrd Mat Min Sub Turns Passed 4938 | 67 1518 945 2408 Spaces Moved 3635 | 43 942 791 1859 Core 26 | 26 . . . Treads . | . . . . Legs . | . . . . Wheels 3609 | 17 942 791 1859 Hover . | . . . . Flight . | . . . . Fastest Speed 50 | 50 90 105 105 Average Speed 104 | 100 99 105 106 Slowest Speed 200 | 200 105 105 130 Overloaded Moves . | . . . . Propulsion Burnouts . | . . . . Robots Hopped . | . . . . Potential Cave-ins . | . . . . Cave-ins Triggered . | . . . . Exploration Rate (%) 68 | 4 99 98 71 Regions Visited 3 Branch Regions 2 Pre-discovered Areas 4 | . . 2 2 Known Exits Taken . | . . . . Unknown Exits Taken 3 | 1 1 1 . Scrap Searched 14 | . . 3 11 Spaces Dug 25 | . . . 25 Terrain Destroyed 39 | . 10 . 29 Melee 5 | . . . 5 Projectile 26 | . 2 . 24 AOE 8 | . 8 . . Terrain Rammed . | . . . . Walls Destroyed . | . . . . Machines Disabled . | . . . . Actions | -11 -10 -10 -10 --------- Run | Yrd Mat Min Sub Total 4565 | 62 1475 882 2146 Wait 651 | . 444 78 129 Move 3632 | 42 941 790 1859 Hop . | . . . . Pick Up 57 | 11 23 . 23 Fast Attach 7 | 3 4 . . Attach 9 | 4 2 . 3 Detach . | . . . . Swap 40 | 1 13 1 25 Drop 40 | . 17 . 23 Fire 117 | 1 31 12 73 Melee 11 | . . . 11 Ram 1 | . . 1 . Kick . | . . . . Crush . | . . . . Escape Stasis . | . . . . Rewire . | . . . . Trap . | . . . . Miscellaneous . | . . . . Route ------- -11/Scrapyard -10/Materials (discovered 6 exits: [*Mat x3] / [*Min x2] / *Sub) -10/Mines (discovered 3 exits: [*Mat x2] / *Sub) -10/Subcaves (discovered 3 exits: [*Mat x2] / *Rec) History --------- Turn | Location | Event 8 | -11/Scrapyard | Discovered new exit (range 15) 68 | -11/Scrapyard | Entered Materials 308 | -10/Materials | Build established: Mutant 391 | -10/Materials | Discovered new exit (range 3) 492 | -10/Materials | Discovered new exit (range 9) 629 | -10/Materials | Discovered new exit (range 10) 936 | -10/Materials | Discovered new exit (range 7) 993 | -10/Materials | Discovered new exit (range 6) 1062 | -10/Materials | Repaired Arm. Wheel 1096 | -10/Materials | Repaired Arm. Wheel 1148 | -10/Materials | Repaired Hvy. Ion Engine 1276 | -10/Materials | Discovered new exit (range 13) 1552 | -10/Materials | Repaired Particle Cannon 1586 | -10/Materials | Entered Mines 1586 | -10/Mines | Accompanied by 1 ally 1644 | -10/Mines | Met a Derelict bent on vengeance 1778 | -10/Mines | Discovered new exit (range 7) 1847 | -10/Mines | Learned location of Zion (-6) 1918 | -10/Mines | Discovered new exit (range 6) 2315 | -10/Mines | Discovered new exit (range 6) 2441 | -10/Mines | Core integrity fell below 50% 2531 | -10/Mines | Entered Subcaves 2531 | -10/Subcaves | Accompanied by 1 ally 2532 | -10/Subcaves | Approached by a straggling Scientist 2572 | -10/Subcaves | A swath of the cavern ceiling suddenly collapsed 2711 | -10/Subcaves | Met a Zionite searching for "candidates" 2733 | -10/Subcaves | Shifting Twisted Machinery released Battle Cannon 2733 | -10/Subcaves | Discovered new exit (range 16) 2737 | -10/Subcaves | Shifting Twisted Machinery released Sub. Beam Cannon 2865 | -10/Subcaves | A swath of the cavern ceiling suddenly collapsed 3527 | -10/Subcaves | Discovered new exit (range 15) 3748 | -10/Subcaves | Core integrity fell below 20% 3828 | -10/Subcaves | Learned Materials stockpile data 3878 | -10/Subcaves | Identified exit to Recycling 4149 | -10/Subcaves | Visited Clippyterm 4152 | -10/Subcaves | Learned location of Section 7 (-2) 4939 | -10/Subcaves | Destroyed by Autobeam Turret with Autobeam Last Messages --------------- 04563_ Acquired 5 matter. 04567_ 4X-A4Z(u) builds Twisted Machinery. 04734_ TO-CSH(u) tweaks Twisted Machinery. 04772_ Subatomizers dissect the Disposable Heat Sink. 04902_ S-10 Pest destroyed. 04906_ Lgt. Assault Rifle fries itself beyond repair. 04914_ Lgt. Ion Engine fries itself beyond repair. 04914_ S-10 Pest destroyed. 04916_ Flight Unit fries itself beyond repair. 04922_ Sub. Beam Cannon shoots sparks and powers down. 04929_ Flight Unit fries itself beyond repair. 04931_ S-10 Pest destroyed. 04935_ Flight Unit fries itself beyond repair. 04936_ Acquired 13 matter. 04937_ Machine disabled. Map ----- +----------------------------------------------------+ | ### ### #### ###????????????????????????????? | | ### ##?###??###??????????????????????????????? | | #### #????????????????????????????????????????? | | #?####????????????????????????????????????????? | | #?????????????????????????????????????????????? | | ##?????????????????????????????????????????????? | | #?????????????????????????????????????????????? | | ##?????????????????????????????????????????????? | | #??????????????????????????????????????????????? | | ##?????????????????????????????????????????????? | | #?????????????????????????????????????????????? | | #??????????????????????????##?????????????????? | | ##?????????????????????????# #?????????????????? | | ##????????????????????????# #??????????????????? | | #???????????????????????# #???????????????????? | | #??????????????????????# #????????????????????? | | #?????????????????????# ###???????????????????? | | ##?????????????????### ## #???????????????????? | | ##???????????????## ## #????????????????????? | | #???????????##### ## #?##??????????????????? | | #??????????## ##;"##;###>####???????????????? | | ######?###??#" ;#;"" " """"#??????????????? | | #### ###"#??# " o ;#" " " "#??????????????? | | ## #?# ##"####" ;#" t "#??????????????? | | # #??# #" ## ####;*% % #??????????????? | | #??# ### " #??###@[ #??????????????? | | ##??# # """#????#" "#??????????????? | | ####### "##????#### ####??????????????? | | ### # ""#?????????? "#?????????????????? | | ## # # # ""##??????????? #?????????????????? | | ## ####"" #?????????????#?????????????????? | | # ## #??"" ??????????????????????????????? | | # ### ###?" ????????????????????????????? | | ## # #"" ####???????????????????????????? | | "" #??????????????????????????????? | | "" #?????????????????????????????? | | #### ## ##?????????????????????????????? | | #?## ##? ## #??????????????????????????????? | | #??###???#? ??????????????????????????????? | | % #???????????? #?????????????????????????????? | | ###?????????? ?#??????????????????????????????? | | #???????????????????????????????????????????? | | # ##???????????????????????????????????????????? | | ## ##???????????????????????????????????????????? | | ?## ##??????????????????????????????????????????? | | ??# #??????????????????????????????????????????? | | ??# #??????????????????????????????????????????? | | ??# #??????????????????????????????????????????? | | ??# ##?????????????????????????????????????????? | | ??# ##????????????????????????????????????????? | +----------------------------------------------------+ Best States ------------- Heat Dissipation 35 Energy Generation 14 Energy Capacity 280 Matter Stores 300 Matter Capacity 300 Sight Range 21 Terrain Scan Density 10 Armor Coverage 100 Evasion (%) 50 Item Schematics ----------------- None Robot Schematics ------------------ None Fabricated ------------ Nothing Repaired ---------- Arm. Wheel | 30% | -10/Materials Arm. Wheel | 69% | -10/Materials Hvy. Ion Engine | 78% | -10/Materials Particle Cannon | 41% | -10/Materials Alien Tech Used ----------------- None Achievements -------------- None Challenges ------------ None Game ------ Seed SurveybotRecoilGreatsword Manual? 0 Play Time 01:04:34 Cumulative 27.8 hours Start 2025.09.29 @ 03:31:03 End 2025.09.29 @ 04:44:03 Sessions 1 Manual Loads 0 Difficulty Rogue Special Mode None Game No. 32 Rogue 32 Adventurer 0 Explorer 0 Win Type - Total 0 Types 0/0/0/0/0/0/0/0/0/0 Lore% 11 Gallery% 22 Achievement% 20 Wizard Run 0 Options --------- Layout 1 ASCII 0 Keyboard 0 Movement Mouse Keybinds 0 Fullscreen 2 Font 24/Smallcaps Map View 50x35 Zoom Use 0% Tactical HUD 1 Map Filters NONE Filters NONE Steam 1 RUN: 6dd6f617-4a56-4559-a353-aeb1d3af588a